Date of Transaction,LA dept which incurred the expenditure,Beneficiary,Amount,VAT,Summary of the purpose of expenditure,Merchant Category
27/11/2019,Department of the Deputy Chief Excutive Officer,WWW.MONEYCLAIM.GOV,60.00,,W02066,GOVERNMENT SERVICES-NOT ELSEWHERE CLASSIFIED
12/11/2019,Department of the Deputy Chief Excutive Officer,WWW.MONEYCLAIM.GOV,70.00,,M02136,GOVERNMENT SERVICES-NOT ELSEWHERE CLASSIFIED
22/11/2019,Department of the Deputy Chief Excutive Officer,VIVID HOUSING LTD,207.52,,RIA,BUSINESS SERVICES-NOT ELSEWHERE CLASSIFIED
22/11/2019,Department of the Deputy Chief Excutive Officer,VIVID HOUSING LTD,248.00,,RIA,BUSINESS SERVICES-NOT ELSEWHERE CLASSIFIED
21/11/2019,Department of the Deputy Chief Excutive Officer,VIVID HOUSING LTD,241.60,,RIA,BUSINESS SERVICES-NOT ELSEWHERE CLASSIFIED
08/11/2019,Department of the Deputy Chief Excutive Officer,VIVID HOUSING LTD,250.74,,RIA,BUSINESS SERVICES-NOT ELSEWHERE CLASSIFIED
15/11/2019,Leisure & Community,FACEBK QXA5KP6NG2,1.55,,VICTORIAN CHRISTMAS FB ADVERT,ADVERTISING SERVICES
15/11/2019,Leisure & Community,FACEBK QXA5KP6NG2,7.95,,CITIZEN OF HONOUR FB ADVERT,ADVERTISING SERVICES
13/11/2019,Leisure & Community,WATERSTONES.COM,19.99,,MARKETING BOOK,BOOK STORES
13/11/2019,Leisure & Community,CVP,240.99,,CAMCORDER CARRIER,CAMERA AND PHOTOGRAPHIC SUPPLY STORES
22/11/2019,Planning & Regeneration,E-BATH,379.91,,TOILET SEATS,"EQUIP, FURNITURE, HOME FURNSHNGS STRS (EXCPT APPL)"
18/11/2019,Planning & Regeneration,CASTLE (EU) LTD,542.92,,CLEANING SUPPLIES,INDUSTRIAL SUPPLIES NOT ELSEWHERE CLASSIFIED
11/11/2019,Planning & Regeneration,EVAQ8,34.08,,FIRST AID KIT FOR FERNEHAM HAL,MISCELLANEOUS AND SPECIALTY RETAIL STORES
11/11/2019,Planning & Regeneration,WWW.PROFESSIONALBOOKS.,142.88,,REFERENCE BOOK,BOOK STORES
08/11/2019,Planning & Regeneration,WWW.NUCOPLUS.COM,5.99,,FIRST AID BOOKS,"SCHOOLS, TRADE AND VOCATIONAL"
08/11/2019,Planning & Regeneration,WWW.NUCOPLUS.COM,20.00,,FIRST AID BOOKS,"SCHOOLS, TRADE AND VOCATIONAL"
07/11/2019,Planning & Regeneration,E-BATH,131.07,,TOILET SEATS,"EQUIP, FURNITURE, HOME FURNSHNGS STRS (EXCPT APPL)"
05/11/2019,Planning & Regeneration,WWW.SAFETYFIRSTAID.CO.,26.70,,FIRST AID SUPPLIES,INDUSTRIAL SUPPLIES NOT ELSEWHERE CLASSIFIED
04/11/2019,Planning & Regeneration,WWW.NUCOPLUS.COM,5.99,,FIRST AID BOOKS,"SCHOOLS, TRADE AND VOCATIONAL"
04/11/2019,Planning & Regeneration,WWW.NUCOPLUS.COM,39.50,,FIRST AID BOOKS,"SCHOOLS, TRADE AND VOCATIONAL"
01/11/2019,Planning & Regeneration,CASTLE (EU) LTD,749.32,,CLEANING SUPPLIES,INDUSTRIAL SUPPLIES NOT ELSEWHERE CLASSIFIED
05/11/2019,Planning & Regeneration,CURRYS ONLINE,429.16,,GIFT - LONG SERVICE,ELECTRONIC SALES
21/11/2019,Department of the Deputy Chief Excutive Officer,DVSA,13.00,,VTG7 REPLACEMENT,GOVERNMENT SERVICES-NOT ELSEWHERE CLASSIFIED
21/11/2019,Department of the Deputy Chief Excutive Officer,LASALIGN LTD,102.00,,STEERING ALIGNMENT,BUSINESS SERVICES-NOT ELSEWHERE CLASSIFIED
18/11/2019,Department of the Deputy Chief Excutive Officer,DSA,25.00,,STOLEN DIGI CARD,GOVERNMENT SERVICES-NOT ELSEWHERE CLASSIFIED
13/11/2019,Department of the Deputy Chief Excutive Officer,JRC VEHICLE REPAIR,400.00,,PAINT REPAIRS,AUTOMOTIVE SERVICE SHOPS
12/11/2019,Department of the Deputy Chief Excutive Officer,DVLA VEHICLE TAX,722.50,,ROAD FUND LICENCE,GOVERNMENT SERVICES-NOT ELSEWHERE CLASSIFIED
11/11/2019,Department of the Deputy Chief Excutive Officer,DVLA VEHICLE TAX,202.00,,ROAD FUND LICENCE,GOVERNMENT SERVICES-NOT ELSEWHERE CLASSIFIED
07/11/2019,Department of the Deputy Chief Excutive Officer,VISION TECHNIQUES/UK/L,330.00,,CAMERA SIM CHARGES,DIRECT MARKETING-OTHER DIRECT MARKETERS/NOT ELSEW.
06/11/2019,Department of the Deputy Chief Excutive Officer,WESTFIELD SHOPPING,8.50,,CAR PARK FREIGHT IN THE CITY,AUTOMOBILE PARKING LOTS AND GARAGES
06/11/2019,Department of the Deputy Chief Excutive Officer,ALEXANDRA PALACE,14.40,,LUNCH,"EATING PLACES, RESTAURANTS"
06/11/2019,Department of the Deputy Chief Excutive Officer,LUL TICKET MACHINE,15.00,,LONDON TUBE TICKET,PASSENGER RAILWAYS
06/11/2019,Department of the Deputy Chief Excutive Officer,LUL TICKET MACHINE,10.00,,LONDON TUBE TICKET,PASSENGER RAILWAYS
06/11/2019,Department of the Deputy Chief Excutive Officer,STARBUCKS,6.25,,06.00 START,FAST FOOD RESTAURANTS
31/10/2019,Department of the Deputy Chief Excutive Officer,THE NEC,16.00,,PARKING,AUTOMOBILE PARKING LOTS AND GARAGES
31/10/2019,Department of the Deputy Chief Excutive Officer,WELCOME B/BK,19.72,,LUNCH  RECEIPT,"MISC FOOD STORE-CONVENIENCE,MRKT,SPLTY,VENDNG MACS"
15/11/2019,Department of the Deputy Chief Excutive Officer,BEAVER TOOL HIRE CHICH,264.60,,DEHUM  125956,"EQUIPMENT RENTAL&LEASING SVS, FURNTURE/TOOL RENTAL"
05/11/2019,Department of the Deputy Chief Excutive Officer,BEAVER TOOL HIRE CHICH,413.44,,DEHUM   125956,"EQUIPMENT RENTAL&LEASING SVS, FURNTURE/TOOL RENTAL"
01/11/2019,Department of the Deputy Chief Excutive Officer,HMCOURTS-SERVICE.G,94.50,,CT SUMMONSES,FINES
01/11/2019,Department of the Deputy Chief Excutive Officer,HMCOURTS-SERVICE.G,4.50,,NDR SUMMONSES,FINES
25/11/2019,Streetscene,SWRAILWAY TCK OFF,102.20,,TRAIN TICKETS,PASSENGER RAILWAYS
25/11/2019,Streetscene,RG WARWICK TRADING,178.35,,FERTILISER,HARDWARE STORES
19/11/2019,Streetscene,SEPD PLC,303.99,,BUS SHELTER,"UTLTS-ELCTRC, GAS, HEATING OIL, SANITARY, WATER"
16/11/2019,Streetscene,AMZNMKTPLACE,107.73,,GROUND SHEETS,MISCELLANEOUS AND SPECIALTY RETAIL STORES
13/11/2019,Streetscene,ENVIRONMENT MEDIA GRP,150.00,,COMMUNICATION CONFERENCE,ADVERTISING SERVICES
10/11/2019,Streetscene,AMZNMKTPLACE AMAZON.CO,108.41,,CREW FOLDERS,MISCELLANEOUS AND SPECIALTY RETAIL STORES
10/11/2019,Streetscene,AMZNMKTPLACE AMAZON.CO,134.39,,FOLDERS FOR CREW,MISCELLANEOUS AND SPECIALTY RETAIL STORES
07/11/2019,Streetscene,WWW.HAYMARKET.COM,165.00,,HORTICULTURAL MAG SUBSCRIPTION,"ORGANIZATIONS, MEMBERSHIP-NOT ELSEWHERE CLASSIFIED"
06/11/2019,Streetscene,TRAVELODGE,71.65,,TRANSFER COURSE X 2,TRAVELODGE
06/11/2019,Streetscene,TRAVELODGE,10.50,,TRANSFER COURSE X 2,TRAVELODGE
05/11/2019,Streetscene,HAMPSHIRE COUNTY COUNC,75.00,,BUS STOP SUSPENSION,GOVERNMENT SERVICES-NOT ELSEWHERE CLASSIFIED
05/11/2019,Streetscene,HAMPSHIRE COUNTY COUNC,75.00,,BUS STOP SUSPENSION,GOVERNMENT SERVICES-NOT ELSEWHERE CLASSIFIED
31/10/2019,Streetscene,BROADCUT,24.99,,KETTLE,DISCOUNT STORES
28/10/2019,Streetscene,HAMPSHIRE COUNTY COUNC,430.00,,LICENSE,GOVERNMENT SERVICES-NOT ELSEWHERE CLASSIFIED
28/10/2019,Streetscene,HAMPSHIRE COUNTY COUNC,430.00,,LICENSE,GOVERNMENT SERVICES-NOT ELSEWHERE CLASSIFIED
28/10/2019,Streetscene,WICKES FAREHAM,3.75,,WIROX,HOME SUPPLY WAREHOUSE STORES
28/10/2019,Streetscene,HAMPSHIRE COUNTY COUNC,430.00,,LICENSE,GOVERNMENT SERVICES-NOT ELSEWHERE CLASSIFIED
28/10/2019,Streetscene,HAMPSHIRE COUNTY COUNC,-430.00,,REFUND,GOVERNMENT SERVICES-NOT ELSEWHERE CLASSIFIED
25/10/2019,Streetscene,HAMPSHIRE COUNTY COUNC,-430.00,,REFUND,GOVERNMENT SERVICES-NOT ELSEWHERE CLASSIFIED
21/11/2019,Leisure & Community,FORGET ME NOT PUBLICAT,140.00,,PANTO LEAFLET DISTRIBUTION,ADVERTISING SERVICES
14/11/2019,Leisure & Community,SCREWFIX DIRECT,37.43,,LIGHT BULBS,HOME SUPPLY WAREHOUSE STORES
12/11/2019,Leisure & Community,AMZNMKTPLACE AMAZON.CO,14.16,,TILL ROLLS,MISCELLANEOUS AND SPECIALTY RETAIL STORES
06/11/2019,Leisure & Community,BUYABATTERY CO UK,227.08,,BATTERIES,ELECTRICAL PARTS AND EQUIPMENT
31/10/2019,Leisure & Community,FACEBK  3BMH5MNAA2,97.82,,FACEBOOK BOOSTS,ADVERTISING SERVICES
26/11/2019,Support Services,AMZNMKTPLACE,10.37,,ADSL WEB FILTER,MISCELLANEOUS AND SPECIALTY RETAIL STORES
26/11/2019,Support Services,AMZNMKTPLACE,23.97,,ADSL WEB FILTER,MISCELLANEOUS AND SPECIALTY RETAIL STORES
20/11/2019,Support Services,DISCLOSURE AND BARRING,23.00,,DISCLOSURE AND BARRING SERVICE,GOVERNMENT SERVICES-NOT ELSEWHERE CLASSIFIED
07/11/2019,Support Services,PREMIER FARNELL,47.16,,MULTI TOOL,ELECTRICAL PARTS AND EQUIPMENT
06/11/2019,Support Services,AMAZON PRIME 3Z24T9L75,80.00,,AMAZON ACCOUNT,DIRECT MARKETING-CONTINUITY/SUBSCRIPTION MERCHANTS
06/11/2019,Support Services,MEDIA & COMMUNICATIONS,50.00,,TELEPHONE HEADSET,TELECOMMUNICATION EQUIPMENT INCL TELEPHONE SALES
06/11/2019,Support Services,AMAZON.CO.UK XN7Y61H25,24.82,,COMPUTER MEMORY,DIRECT MARKETING-OTHER DIRECT MARKETERS/NOT ELSEW.
01/11/2019,Support Services,BLS AUTODESK PURCHASE,355.00,,AUTOCAD SOFTWARE,BUSINESS SERVICES-NOT ELSEWHERE CLASSIFIED
30/10/2019,Support Services,AMAZON.CO.UK EJ4CR52H5,220.79,,SSD HARD DRIVES,DIRECT MARKETING-OTHER DIRECT MARKETERS/NOT ELSEW.
21/11/2019,Department of the Deputy Chief Excutive Officer,3C_ RUSHMOOR BOROUGH C,4.00,,PARKING,AUTOMOBILE PARKING LOTS AND GARAGES
30/10/2019,Department of the Deputy Chief Excutive Officer,SWRAILWAYSELFSERVE,12.40,,PCC TRANSCRIPTION MEETING,PASSENGER RAILWAYS
26/11/2019,Leisure & Community,HELP SAVE LIVES,558.00,,COMMUNITY EQUIPMENT,DENTAL/LAB/MED/OPHTHALMIC HOSP EQUIP & SUPPLIES
25/11/2019,Leisure & Community,EVENTUS HIRE LTD,-50.00,,EVENT EQUIPMENT HIRE DEPOSIT,CATERERS
24/11/2019,Leisure & Community,IZ  SARUM EVENT CATERI,60.00,,EVENT REFRESHMENTS,"EATING PLACES, RESTAURANTS"
24/11/2019,Leisure & Community,B M RETAIL,0.69,,EVENT REFRESHMENT,DISCOUNT STORES
22/11/2019,Leisure & Community,WILKO RETAIL LIMITED,6.00,,EVENT EQUIPMENT,MISCELLANEOUS GENERAL MERCHANDISE
22/11/2019,Leisure & Community,WILKO RETAIL LIMITED,7.00,,EVENT EQUIPMENT,MISCELLANEOUS GENERAL MERCHANDISE
22/11/2019,Leisure & Community,POUNDLAND,10.05,,EVENT REFRESHMENTS,DISCOUNT STORES
22/11/2019,Leisure & Community,POUNDLAND,1.00,,EVENT EQUIPMENT,DISCOUNT STORES
21/11/2019,Leisure & Community,DECATHLON UK,7.99,,EVENT EQUIPMENT,SPORTING GOODS STORES
21/11/2019,Leisure & Community,SAINSBURYS SACAT 0681,2.50,,REFRESHMENTS,"GROCERY STORES, SUPERMARKETS"
21/11/2019,Leisure & Community,BROADCUT,7.99,,EVENT EQUIPMENT,DISCOUNT STORES
20/11/2019,Leisure & Community,TESCO STORES,15.25,,EQUIPMENT,"GROCERY STORES, SUPERMARKETS"
16/11/2019,Leisure & Community,AMZNMKTPLACE,31.45,,EVENT COSTUMES,MISCELLANEOUS AND SPECIALTY RETAIL STORES
15/11/2019,Leisure & Community,HILBORNE TRADITIONAL S,6.00,,REFRESHMENTS,"CANDY, NUT, CONFECTIONERY STORES"
15/11/2019,Leisure & Community,B M RETAIL,2.50,,REFRESHMENTS,DISCOUNT STORES
15/11/2019,Leisure & Community,CARD FACTORY,1.98,,STATIONERY,"GIFT, CARD, NOVELTY AND SOUVENIR SHOPS"
15/11/2019,Leisure & Community,HOMEBASE LTD 207,-15.25,,EVENT EQUIPMENT REFUND,HOME SUPPLY WAREHOUSE STORES
15/11/2019,Leisure & Community,SAINSBURYS SACAT 0681,0.75,,REFRESHMENTS,"GROCERY STORES, SUPERMARKETS"
13/11/2019,Leisure & Community,CARD FACTORY,5.16,,STATIONERY,"GIFT, CARD, NOVELTY AND SOUVENIR SHOPS"
13/11/2019,Leisure & Community,WH SMITH,2.99,,STATIONERY,NEWS DEALERS AND NEWSSTANDS
13/11/2019,Leisure & Community,THE WORKS,5.00,,STATIONERY,DISCOUNT STORES
13/11/2019,Leisure & Community,B M RETAIL,48.42,,REFRESHMENTS EQUIP,DISCOUNT STORES
13/11/2019,Leisure & Community,POUNDLAND,7.05,,REFRESHMENTS,DISCOUNT STORES
11/11/2019,Leisure & Community,EVENTUS HIRE LTD,240.00,,EVENT FURNITURE HIRE,CATERERS
08/11/2019,Leisure & Community,GROUNDLINGS THEATRE CO,50.00,,EVENT COSTUMES,"THEATRICAL PRODUCERS(EXCL MOTION PIX),TICKET AGNCY"
07/11/2019,Leisure & Community,PEACOCK STORES,23.00,,EVENT CLOTHES,VARIETY STORES
07/11/2019,Leisure & Community,MAKRO SELF SERVICE FAR,105.84,,GENERAL EVENT REFRESHMENTS,WHOLESALE CLUBS
05/11/2019,Leisure & Community,HOMEBASE LTD 207,26.25,,EVENT EQUIPMENT,HOME SUPPLY WAREHOUSE STORES
05/11/2019,Leisure & Community,TIMPSON LTD,20.00,,EVENT EQUIPMENT - KEYS,"HAT CLEANING SHOPS, SHOE REPAIR SHOPS, SHOE SHINE"
04/11/2019,Leisure & Community,AMZNMKTPLACE,53.71,,EVENT EQUIPMENT,MISCELLANEOUS AND SPECIALTY RETAIL STORES
29/10/2019,Leisure & Community,RIVER ISLAND 138,-35.00,,EVENT EQUIPMENT - COSTUMES,MEN'S AND WOMEN'S CLOTHING STORES
29/10/2019,Leisure & Community,AMZ FASHIONFROMSTREET,-7.00,,EVENT EQUIPMENT,MISCELLANEOUS AND SPECIALTY RETAIL STORES
29/10/2019,Leisure & Community,AMZNMKTPLACE,50.02,,EVENT EQUIPMENT - COSTUMES,MISCELLANEOUS AND SPECIALTY RETAIL STORES
28/10/2019,Leisure & Community,DOROTHY PERKINS,49.00,,EVENT EQUIPMENT - COSTUMES,MEN'S AND WOMEN'S CLOTHING STORES
28/10/2019,Leisure & Community,RIVER ISLAND 138,59.10,,EVENT EQUIPMENT,MEN'S AND WOMEN'S CLOTHING STORES
28/10/2019,Leisure & Community,AMZ LAORCHID,-19.99,,EVENT EQUIPMENT,MISCELLANEOUS AND SPECIALTY RETAIL STORES
25/11/2019,Department of the Deputy Chief Excutive Officer,SITEBOX LIMITED,739.95,,INDUSTRIAL 240V DEHUMIDIFIER,HARDWARE EQUIPMENT AND SUPPLIES
22/11/2019,Department of the Deputy Chief Excutive Officer,SAFETYSUPPL,43.45,,2L PRESSURE SPRAYER,DEPARTMENT STORES
22/11/2019,Department of the Deputy Chief Excutive Officer,PAYPAL  EBAY SCOTTDIRE,126.75,,BATTERIES,HARDWARE STORES
22/11/2019,Department of the Deputy Chief Excutive Officer,PAYPAL  EBAY GUFANG761,51.80,,DEWALT BATTERY,MISCELLANEOUS AND SPECIALTY RETAIL STORES
18/11/2019,Department of the Deputy Chief Excutive Officer,REPLACEMENT CEILING TI,114.60,,CEILING TILES,"BUILDING MATERIALS, LUMBER STORES"
18/11/2019,Department of the Deputy Chief Excutive Officer,PAYPAL  EBAY SMK TANCO,14.08,,IPHONE 6 VAN CHARGER,TELECOMMUNICATION EQUIPMENT INCL TELEPHONE SALES
14/11/2019,Department of the Deputy Chief Excutive Officer,SHOWERDOC,81.00,,REDRING PRV SELECTRONIC,MISCELLANEOUS HOUSE FURNISHING SPECIALTY SHOPS
14/11/2019,Department of the Deputy Chief Excutive Officer,SHOWERDOC,5.95,,REDRING PRV SELECTRONIC,MISCELLANEOUS HOUSE FURNISHING SPECIALTY SHOPS
30/10/2019,Department of the Deputy Chief Excutive Officer,TOOLSTATION LTD,54.15,,JOB NUMBER: 126415,HARDWARE STORES
20/11/2019,Streetscene,SW RAILWAY APP,18.20,,ATTEND MEETING,PASSENGER RAILWAYS
28/10/2019,Department of the Deputy Chief Excutive Officer,MARTIN MCCOLL'S,20.00,,ELECTRIC DEBT,"MISC FOOD STORE-CONVENIENCE,MRKT,SPLTY,VENDNG MACS"
19/11/2019,Leisure & Community,WWW.NISBETS.COM,26.98,,PROBE DISINFECTANT WIPES FOOD,DIRECT MARKETING-CATALOG MERCHANTS
28/10/2019,Leisure & Community,ARGOS RETAIL GROUP,66.65,,HEATERS,DISCOUNT STORES
25/11/2019,Department of the Deputy Chief Excutive Officer,AMZNMKTPLACE AMAZON.CO,125.03,,PPE,MISCELLANEOUS AND SPECIALTY RETAIL STORES
17/11/2019,Department of the Deputy Chief Excutive Officer,AMAZON.CO.UK 4Q2QX4RL5,27.49,,KEYBOX,DIRECT MARKETING-OTHER DIRECT MARKETERS/NOT ELSEW.
15/11/2019,Department of the Deputy Chief Excutive Officer,AMZNMKTPLACE,7.98,,1ST AID KIT,MISCELLANEOUS AND SPECIALTY RETAIL STORES
07/11/2019,Department of the Deputy Chief Excutive Officer,THE WORKS,12.00,,2020 WALLPLANNERS - SCHEMES,DISCOUNT STORES
05/11/2019,Department of the Deputy Chief Excutive Officer,AMZNMKTPLACE,15.98,,BOARD MAGNETS - SCHEMES,MISCELLANEOUS AND SPECIALTY RETAIL STORES
04/11/2019,Department of the Deputy Chief Excutive Officer,AMZNMKTPLACE AMAZON.CO,11.98,,BATTERIES - SCHEMES,MISCELLANEOUS AND SPECIALTY RETAIL STORES
31/10/2019,Department of the Deputy Chief Excutive Officer,TVLICENSING.CO.UK,154.50,,TV LICENCE,"CONSULTING, MANAGEMENT, AND PUBLIC RELATIONS SVCS"
26/11/2019,Support Services,RINGOPARKBYPHONE,5.00,,PARKING - QUALITY CHECK,AUTOMOBILE PARKING LOTS AND GARAGES
26/11/2019,Support Services,RINGOPARKBYPHONE,5.00,,PARKING - QUALITY CHECK,AUTOMOBILE PARKING LOTS AND GARAGES
22/11/2019,Support Services,TRAINLINE,109.38,,QUALITY CHECK POSTAL VOTES,PASSENGER RAILWAYS
19/11/2019,Department of the Deputy Chief Excutive Officer,SAINSBURYS 0681,23.00,,FLOWERS -  INCIDENT,"GROCERY STORES, SUPERMARKETS"
06/11/2019,Department of the Deputy Chief Excutive Officer,TOILETS + LIMITED,176.40,,PORTALOO,"COMMERCIAL EQUIPMENT, NOT ELSEWHERE CLASSIFIED"
05/11/2019,Department of the Deputy Chief Excutive Officer,SWRAILWAY TCK OFF,50.60,,CUSTOMER DAY,PASSENGER RAILWAYS
27/11/2019,Planning & Regeneration,WWW.TARPAULINSDIRECT.C,32.05,,TARPAULIN,TENT AND AWNING SHOPS
26/11/2019,Planning & Regeneration,WWW.WIREFITTINGS.CO.UK,304.86,,LEAFLET STAND,"ARCHITECTURAL, ENGINEERING, AND SURVEYING SERVICES"
11/11/2019,Planning & Regeneration,GALLEON SUPPLIES L,72.60,,WIPERS,MISCELLANEOUS AND SPECIALTY RETAIL STORES
30/10/2019,Planning & Regeneration,WWW.TOOLSTATION.COM,12.48,,TAPE MEASURE,HARDWARE STORES
29/10/2019,Planning & Regeneration,YU ENERGY,279.47,,YU ENERGY,"UTLTS-ELCTRC, GAS, HEATING OIL, SANITARY, WATER"
25/11/2019,Support Services,PDFTRON SYSTEMS INC,"1,578.72",,1 YEAR AMS FEE - LICENSE,"COMP PROGRAMING,DATA PRCSNG,INTGRTD SYS DSGN SRVS"
20/11/2019,Support Services,DIGITAL ID,184.94,,"RIBBON, CARD HOLDERS, LANYARDS","COMPUTERS, COMPUTER PERIPHERAL EQUIPMENT, SOFTWARE"
05/11/2019,Support Services,WWW.PURELYPAPER.CO.UK,236.89,,PAPER WHITE GOLD 120GSM,ELECTRICAL PARTS AND EQUIPMENT
30/10/2019,Support Services,WWW.CRITICALPOWERSUPPL,471.33,,UPS,ELECTRICAL PARTS AND EQUIPMENT
15/11/2019,Planning & Regeneration,WWW.TCPA.ORG.UK,150.00,,TCPA COURSE,"ORGANIZATIONS, MEMBERSHIP-NOT ELSEWHERE CLASSIFIED"
22/11/2019,Support Services,COSTA COFFEE 43042010,5.35,,SUBSIS-CLIMATE CHANGE CONF,FAST FOOD RESTAURANTS
22/11/2019,Support Services,RINGOPARKBYPHONE,6.40,,PARKING-CONF CLIMATE CHANGE,AUTOMOBILE PARKING LOTS AND GARAGES
25/11/2019,Leisure & Community,MOONSTONES LTD,55.00,,VOLUNTEERS FLOWERS,FLORISTS
19/11/2019,Leisure & Community,SCREWFIX DIRECT,199.97,,LED FLOODLIGHTS,HOME SUPPLY WAREHOUSE STORES
13/11/2019,Leisure & Community,CARD FACTORY,9.02,,VOLUNTEERS CHRISTMAS CARDS,"GIFT, CARD, NOVELTY AND SOUVENIR SHOPS"
31/10/2019,Leisure & Community,WWW.STUDIOSPARES.COM,108.67,,SNAKE 16 XLR + 4 XLR RETURNS,MISCELLANEOUS AND SPECIALTY RETAIL STORES
30/10/2019,Leisure & Community,SHOPWL,31.50,,HAZE MACHINE PARTS,SPORTING GOODS STORES
27/11/2019,Planning & Regeneration,SAINSBURYS 0681,30.00,,PANTOMIME GALA SUPPLIES,"GROCERY STORES, SUPERMARKETS"
20/11/2019,Planning & Regeneration,TESCO-STORES 6255,5.75,,PARLOUR VISIT SUPPLIES,"GROCERY STORES, SUPERMARKETS"
19/11/2019,Planning & Regeneration,TESCO-STORES 6255,7.39,,PARLOUR SUPPLIES,"GROCERY STORES, SUPERMARKETS"
15/11/2019,Planning & Regeneration,SAINSBURYS 0681,24.00,,DINNER PARTY SUPPLIES,"GROCERY STORES, SUPERMARKETS"
14/11/2019,Planning & Regeneration,TESCO-STORES 6255,14.20,,PARLOUR SUPPLIES,"GROCERY STORES, SUPERMARKETS"
06/11/2019,Planning & Regeneration,SCREWFIX DIRECT,35.81,,TOILET RODS,HOME SUPPLY WAREHOUSE STORES
05/11/2019,Planning & Regeneration,SAINSBURYS 0681,15.00,,REMEMBRANCE SUPPLIES,"GROCERY STORES, SUPERMARKETS"
28/10/2019,Planning & Regeneration,B M RETAIL,1.99,,WREATH WEIGHTING MATERIALS,DISCOUNT STORES
01/11/2019,Leisure & Community,PAYPAL  FALCONINTER ON,15.99,,NEW FIRE BAG,VARIETY STORES
25/11/2019,Planning & Regeneration,EB  IFE SOUTHERN BRANC,210.00,,EVENT FIRE COURSE,BUSINESS SERVICES-NOT ELSEWHERE CLASSIFIED
27/11/2019,Support Services,B M RETAIL,6.98,,SUNDRIES,DISCOUNT STORES
13/11/2019,Support Services,RINGOPARKBYPHONE,4.90,,CONF-PARKING,AUTOMOBILE PARKING LOTS AND GARAGES
26/11/2019,Planning & Regeneration,WINCHESTER CITY COUNCI,4.20,,WELBORNE MEETING,AUTOMOBILE PARKING LOTS AND GARAGES
21/11/2019,Planning & Regeneration,NEW SOUTHERN RAILW,34.40,,WELBORNE MEETING,PASSENGER RAILWAYS
13/11/2019,Planning & Regeneration,HAVANT BOROUGH COUNCIL,2.00,,COASTAL MEETING,AUTOMOBILE PARKING LOTS AND GARAGES
11/11/2019,Planning & Regeneration,WINCHESTER CITY COUNCI,4.20,,WELBORNE TRAVEL,AUTOMOBILE PARKING LOTS AND GARAGES
27/11/2019,Leisure & Community,SAINSBURYS SACAT 0681,15.90,,BAR SUPPLIES,"GROCERY STORES, SUPERMARKETS"
26/11/2019,Leisure & Community,ICELAND,3.48,,BAR SUPPLIES,"GROCERY STORES, SUPERMARKETS"
26/11/2019,Leisure & Community,BESTWAY WHOLESALE,201.30,,CONFECTIONERY,DAIRY PRODUCTS STORES
20/11/2019,Leisure & Community,HOME BARGAINS,12.73,,PENS & COFFEE,HARDWARE STORES
19/11/2019,Leisure & Community,SAINSBURYS SACAT 0681,20.65,,BAR FOOD SUPPLIES,"GROCERY STORES, SUPERMARKETS"
13/11/2019,Leisure & Community,BESTWAY WHOLESALE,294.56,,CONFECTIONERY & BAR SUPPLIES,DAIRY PRODUCTS STORES
12/11/2019,Leisure & Community,SAINSBURYS SACAT 0681,11.95,,BAR SUPPLIES,"GROCERY STORES, SUPERMARKETS"
07/11/2019,Leisure & Community,ICELAND,8.39,,BAR FOOD SUPPLIES,"GROCERY STORES, SUPERMARKETS"
05/11/2019,Leisure & Community,SAINSBURYS SACAT 0681,21.85,,BAR SANDWICHES & SUPPLIES,"GROCERY STORES, SUPERMARKETS"
02/11/2019,Leisure & Community,ASDA SUPERSTORE,1.00,,BAR SUPPLIES,"GROCERY STORES, SUPERMARKETS"
29/10/2019,Leisure & Community,SAINSBURYS SACAT 0681,18.65,,BAR SUPPLIES,"GROCERY STORES, SUPERMARKETS"
14/11/2019,Leisure & Community,NEOPOST SDS,10.00,,NEOSTATS,"COMP PROGRAMING,DATA PRCSNG,INTGRTD SYS DSGN SRVS"
08/11/2019,Leisure & Community,AMZNMKTPLACE,10.95,,A5 DISPLAY HOLDERS,MISCELLANEOUS AND SPECIALTY RETAIL STORES
04/11/2019,Leisure & Community,STAMPS DIRECT LTD,15.68,,INK STAMPS FOR RECEPTION,"OFFICE, SCHOOL SUPPLY, AND STATIONERY STORES"
10/11/2019,Support Services,HR INNER CIRCLE,103.20,,INNER CIRCLE SUBS,"ORGANIZATIONS, MEMBERSHIP-NOT ELSEWHERE CLASSIFIED"
08/11/2019,Support Services,INDEED TEL+35312545907,15.67,,JOB ADS,BUSINESS SERVICES-NOT ELSEWHERE CLASSIFIED
01/11/2019,Support Services,INDEED TEL+35312545907,333.53,,JOB ADS,BUSINESS SERVICES-NOT ELSEWHERE CLASSIFIED
27/11/2019,Department of the Deputy Chief Excutive Officer,UTILITA ENERGY LIMITED,20.00,,ELECTRIC TOP UP,"UTLTS-ELCTRC, GAS, HEATING OIL, SANITARY, WATER"
27/11/2019,Department of the Deputy Chief Excutive Officer,UTILITA ENERGY LTD,20.00,,GAS TOP UP,"UTLTS-ELCTRC, GAS, HEATING OIL, SANITARY, WATER"
18/11/2019,Department of the Deputy Chief Excutive Officer,WWW.WIGHTLINK.CO.UK,20.00,,FERRY TICKET,"TRANSPRTN-SUBRBN & LOCAL COMTR PSNGR, INCL FERRIES"
18/11/2019,Department of the Deputy Chief Excutive Officer,WWW.WIGHTLINK.CO.UK,20.00,,FERRY TICKET,"TRANSPRTN-SUBRBN & LOCAL COMTR PSNGR, INCL FERRIES"
11/11/2019,Department of the Deputy Chief Excutive Officer,VIKING UK,31.82,,DESK CALENDERS,STATIONERY/OFFICE SUPPLIES/PRINTING & WRITING PAP.
11/11/2019,Department of the Deputy Chief Excutive Officer,VIKING UK,15.88,,DESK CALENDERS,STATIONERY/OFFICE SUPPLIES/PRINTING & WRITING PAP.
11/11/2019,Department of the Deputy Chief Excutive Officer,VIKING UK,6.58,,DIARIES,STATIONERY/OFFICE SUPPLIES/PRINTING & WRITING PAP.
07/11/2019,Department of the Deputy Chief Excutive Officer,BRITISH GAS OTP,18.73,,ELECTRIC METER DEBT CLEAR,"UTLTS-ELCTRC, GAS, HEATING OIL, SANITARY, WATER"
07/11/2019,Department of the Deputy Chief Excutive Officer,BRITISH GAS OTP,20.00,,GAS TOP UP,"UTLTS-ELCTRC, GAS, HEATING OIL, SANITARY, WATER"
07/11/2019,Department of the Deputy Chief Excutive Officer,BRITISH GAS OTP,20.00,,ELECTRICITY TOP UP,"UTLTS-ELCTRC, GAS, HEATING OIL, SANITARY, WATER"
07/11/2019,Department of the Deputy Chief Excutive Officer,BRITISH GAS OTP,17.20,,GAS DEBT CLEAR,"UTLTS-ELCTRC, GAS, HEATING OIL, SANITARY, WATER"
04/11/2019,Department of the Deputy Chief Excutive Officer,TRAINLINE.COM,7.58,,RAIL TRAVEL,PASSENGER RAILWAYS
